fUST/lending_fUST_20250707
["ID","MTS","AMOUNT","RATE_DAILY","PERIOD"]
[370099240,1751879452334,-151.0,0.000249,7]
[370099241,1751879452343,-151.0,0.000249,7]
[370099242,1751879452353,-151.0,0.000249,7]
[370099243,1751879452362,-151.0,0.000249,7]
[370099244,1751879452372,-253.876506,0.000249,7]
[370099245,1751879452382,-151.0,0.000249,7]
[370099246,1751879452390,-151.0,0.000249,7]
[370099247,1751879452400,-273.593835,0.000249,7]
[370099248,1751879452409,-273.593835,0.000249,7]
[370099249,1751879452418,-151.0,0.000249,7]
[370099250,1751879452427,-151.0,0.000249,7]
[370099251,1751879452437,-598998.613906,0.000249,2]
[370099252,1751879452446,-151.0,0.000249,7]
[370099253,1751879452455,-192.268933,0.000249,7]
[370099254,1751879452464,-192.268933,0.000249,7]
[370099255,1751879452473,-151.0,0.000249,7]
[370099256,1751879452483,-151.0,0.000249,7]
[370099257,1751879452496,-190.247934,0.000249,7]
[370099258,1751879452505,-151.0,0.000249,7]
[370099259,1751879452515,-151.0,0.000249,7]
[370099260,1751879452524,-151.0,0.000249,7]
[370099261,1751879452534,-151.0,0.000249,7]
[370099262,1751879452543,-175.208494,0.000249,7]
[370099263,1751879452553,-175.208494,0.000249,7]
[370099264,1751879452563,-151.0,0.000249,7]
[370099265,1751879452573,-258.881302,0.000249,7]
[370099266,1751879452583,-151.0,0.000249,7]
[370099267,1751879452592,-151.0,0.000249,7]
[370099268,1751879452601,-151.0,0.000249,7]
[370099269,1751879452611,-151.0,0.000249,7]
[370099270,1751879452620,-151.0,0.000249,7]
[370099271,1751879452630,-914.69627603,0.00024922,2]
[370099272,1751879452639,-168.0,0.00024929,2]
[370099273,1751879452648,-164.92476611,0.00024932,2]
[370099274,1751879452657,-273.9546003,0.0002499,9]
[370099275,1751879452667,-500.0,0.0002499,9]
[370099276,1751879452677,-1656.383922,0.0002499,4]
[370099277,1751879452686,-1750.250815,0.00025,2]
[370099278,1751879452695,-170.0,0.00025,7]
[370099279,1751879452704,-914.69627603,0.00025009,2]
[370099280,1751879452714,-2390.0,0.00025032,2]
[370099281,1751879452724,-150.0,0.00025068,2]
[370099282,1751879452733,-356.84051267,0.00025072,12]
[370099283,1751879452742,-172.9991932,0.00025096,2]
[370099284,1751879452752,-164.92476611,0.00025096,2]
[370099285,1751879452761,-914.69627603,0.00025096,2]
[370099286,1751879452771,-151.0,0.0002512,7]
[370099287,1751879452780,-168.0,0.00025155,2]
[370099288,1751879452789,-153.0,0.00025178,2]
[370099289,1751879452799,-153.0,0.00025178,2]
[370099290,1751879452808,-153.0,0.00025178,2]
[370099291,1751879452817,-168.0,0.00025182,2]
[370099292,1751879452826,-2390.0,0.00025189,2]
[370099293,1751879452835,-151.0,0.0002519,7]
[370099294,1751879452844,-151.0,0.0002519,7]
[370099295,1751879452854,-151.0,0.0002519,7]
[370099296,1751879452863,-151.0,0.0002519,7]
[370099297,1751879452872,-151.0,0.0002519,7]
[370099298,1751879452882,-151.0,0.0002519,7]
[370099299,1751879452891,-151.0,0.0002519,7]
[370099300,1751879452901,-151.0,0.0002519,7]
[370099301,1751879452911,-151.0,0.0002519,7]
[370099302,1751879452920,-152.770871,0.0002519,7]
[370099303,1751879452930,-151.0,0.0002519,7]
[370099304,1751879452939,-151.0,0.0002519,7]
[370099305,1751879452948,-151.0,0.0002519,7]
[370099306,1751879452958,-151.0,0.0002519,7]
[370099307,1751879452968,-151.0,0.0002519,7]
[370099308,1751879452977,-151.0,0.0002519,7]
[370099309,1751879452986,-151.0,0.0002519,7]
[370099310,1751879452995,-151.0,0.0002519,7]
[370099311,1751879453004,-151.0,0.0002519,7]
[370099312,1751879453013,-151.0,0.0002519,7]
[370099313,1751879453023,-151.0,0.0002519,7]
[370099314,1751879453032,-151.0,0.0002519,7]
[370099315,1751879453042,-151.0,0.0002519,7]
[370099316,1751879453052,-151.0,0.0002519,7]
[370099317,1751879453061,-151.0,0.0002519,7]
[370099318,1751879453070,-151.0,0.0002519,7]
[370099319,1751879453079,-151.790061,0.0002519,7]
[370099320,1751879453088,-151.0,0.0002519,7]
[370099321,1751879453098,-151.0,0.0002519,7]
[370099322,1751879453107,-151.0,0.0002519,7]
[370099323,1751879453116,-151.0,0.0002519,7]
[370099324,1751879453125,-151.0,0.0002519,7]
[370099325,1751879453134,-151.0,0.0002519,7]
[370099326,1751879453144,-151.0,0.0002519,7]
[370099327,1751879453154,-151.0,0.0002519,7]
[370099328,1751879453163,-151.0,0.0002519,7]
[370099329,1751879453173,-201.966983,0.0002519,7]
[370099330,1751879453182,-155.999041,0.0002519,7]
[370099331,1751879453192,-155.999041,0.0002519,7]
[370099332,1751879453201,-155.999041,0.0002519,7]
[370099333,1751879453210,-155.999041,0.0002519,7]
[370099334,1751879453219,-155.999041,0.0002519,7]
[370099335,1751879453228,-155.999041,0.0002519,7]
[370099336,1751879453238,-155.999041,0.0002519,7]
[370099337,1751879453247,-155.999041,0.0002519,7]
[370099338,1751879453256,-155.999041,0.0002519,7]
[370099339,1751879453266,-155.999041,0.0002519,7]
[370099340,1751879453275,-155.999041,0.0002519,7]
[370099341,1751879453285,-155.999041,0.0002519,7]
[370099342,1751879453294,-155.999041,0.0002519,7]
[370099343,1751879453303,-155.999041,0.0002519,7]
[370099344,1751879453312,-151.0,0.0002519,7]
[370099345,1751879453322,-151.0,0.0002519,7]
[370099346,1751879453331,-151.0,0.0002519,7]
[370099347,1751879453340,-151.0,0.0002519,7]
[370099348,1751879453349,-281.57521,0.0002519,7]
[370099349,1751879453359,-151.0,0.00025196,7]
[370099350,1751879453368,-151.0,0.00025196,7]
[370099351,1751879453378,-151.0,0.00025196,7]
[370099352,1751879453388,-151.0,0.00025196,7]
[370099353,1751879453402,-151.0,0.00025196,7]
[370099354,1751879453413,-151.0,0.00025196,7]
[370099355,1751879453424,-151.0,0.00025196,7]
[370099356,1751879453434,-151.0,0.00025196,7]
[370099357,1751879453443,-245.44226,0.00025196,7]
[370099358,1751879453453,-151.0,0.00025196,7]
[370099359,1751879453462,-151.0,0.00025196,7]
[370099360,1751879453471,-151.0,0.00025196,7]
[370099361,1751879453482,-151.0,0.00025196,7]
[370099362,1751879453493,-151.0,0.00025196,7]
[370099363,1751879453502,-151.0,0.00025196,7]
[370099364,1751879453512,-151.0,0.00025196,7]
[370099365,1751879453521,-151.0,0.00025196,7]
[370099366,1751879453531,-151.0,0.00025196,7]
[370099367,1751879453540,-151.0,0.00025196,7]
[370099368,1751879453550,-273.593835,0.00025196,7]
[370099369,1751879453559,-273.593835,0.00025196,7]
[370099370,1751879453572,-273.593835,0.00025196,7]
[370099371,1751879453582,-273.593835,0.00025196,7]
[370099372,1751879453591,-273.593835,0.00025196,7]
[370099373,1751879453601,-151.0,0.00025196,7]
[370099374,1751879453611,-273.593835,0.00025196,7]
[370099375,1751879453620,-273.593835,0.00025196,7]
[370099376,1751879453630,-151.0,0.00025196,7]
[370099377,1751879453639,-151.0,0.00025196,7]
[370099378,1751879453648,-273.593835,0.00025196,7]
[370099379,1751879453658,-273.593835,0.00025196,7]
[370099380,1751879453667,-273.593835,0.00025196,7]
[370099381,1751879453677,-273.593835,0.00025196,7]
[370099382,1751879453687,-273.593835,0.00025196,7]
[370099383,1751879453696,-273.593835,0.00025196,7]
[370099384,1751879453706,-273.593835,0.00025196,7]
[370099385,1751879453715,-151.0,0.00025196,7]
[370099386,1751879453724,-249.854843,0.00025196,7]
[370099387,1751879453733,-151.0,0.00025196,7]
[370099388,1751879453743,-156.477652,0.00025196,7]
[370099389,1751879453753,-192.268933,0.00025196,7]
[370099390,1751879453762,-192.268933,0.00025196,7]
[370099391,1751879453772,-192.268933,0.00025196,7]
[370099392,1751879453782,-192.268933,0.00025196,7]
[370099393,1751879453792,-192.268933,0.00025196,7]
[370099394,1751879453802,-192.268933,0.00025196,7]
[370099395,1751879453811,-192.268933,0.00025196,7]
[370099396,1751879453821,-192.268933,0.00025196,7]
[370099397,1751879453831,-192.268933,0.00025196,7]
[370099398,1751879453841,-192.268933,0.00025196,7]
[370099399,1751879453850,-192.268933,0.00025196,7]
[370099400,1751879453860,-192.268933,0.00025196,7]
[370099401,1751879453869,-192.268933,0.00025196,7]
[370099402,1751879453879,-192.268933,0.00025196,7]
[370099403,1751879453915,-151.0,0.00025196,7]
[370099404,1751879453926,-151.0,0.00025196,7]
[370099405,1751879453935,-151.0,0.00025196,7]
[370099406,1751879453945,-151.0,0.00025196,7]
[370099407,1751879453955,-151.0,0.00025196,7]
[370099408,1751879453965,-151.0,0.00025196,7]
[370099409,1751879453974,-151.0,0.00025196,7]
[370099410,1751879453983,-151.0,0.00025196,7]
[370099411,1751879453993,-151.0,0.00025196,7]
[370099412,1751879454002,-151.0,0.00025196,7]
[370099413,1751879454012,-164.759852,0.00025196,7]
[370099414,1751879454022,-151.0,0.00025196,7]
[370099415,1751879454031,-151.0,0.00025196,7]
[370099416,1751879454041,-151.0,0.00025196,7]
[370099417,1751879454051,-151.0,0.00025196,7]
[370099418,1751879454061,-151.0,0.00025196,7]
[370099419,1751879454070,-151.0,0.00025196,7]
[370099420,1751879454079,-151.0,0.00025196,7]
[370099421,1751879454088,-151.0,0.00025196,7]
[370099422,1751879454097,-266.6463,0.00025196,7]
[370099423,1751879454106,-185.004279,0.00025196,7]
[370099424,1751879454116,-175.208494,0.00025196,7]
[370099425,1751879454126,-175.208494,0.00025196,7]
[370099426,1751879454135,-175.208494,0.00025196,7]
[370099427,1751879454145,-175.208494,0.00025196,7]
[370099428,1751879454154,-175.208494,0.00025196,7]
[370099429,1751879454164,-175.208494,0.00025196,7]
[370099430,1751879454173,-175.208494,0.00025196,7]
[370099431,1751879454183,-175.208494,0.00025196,7]
[370099432,1751879454192,-175.208494,0.00025196,7]
[370099433,1751879454201,-175.208494,0.00025196,7]
[370099434,1751879454210,-175.208494,0.00025196,7]
[370099435,1751879454219,-175.208494,0.00025196,7]
[370099436,1751879454228,-175.208494,0.00025196,7]
[370099437,1751879454238,-175.208494,0.00025196,7]
[370099438,1751879454247,-6130.85586238,0.00025197,2]
[370099439,1751879454256,-20874.01169254,0.00025197,2]
[370099440,1751879454265,-151.0,0.00025197,7]
[370099441,1751879454275,-151.0,0.00025197,7]
[370099442,1751879454284,-180.002054,0.00025197,7]
[370099443,1751879454294,-643.327839,0.00025197,7]
[370099444,1751879454303,-643.327839,0.00025197,7]
[370099445,1751879454312,-643.327839,0.00025197,7]
[370099446,1751879454321,-643.327839,0.00025197,7]
[370099447,1751879454331,-151.0,0.00025197,7]
[370099448,1751879454339,-643.327839,0.00025197,7]
[370099449,1751879454348,-151.0,0.00025197,7]
[370099450,1751879454358,-643.327839,0.00025197,7]
[370099451,1751879454367,-151.0,0.00025197,7]
[370099452,1751879454376,-643.327839,0.00025197,7]
[370099453,1751879454386,-151.0,0.00025197,7]
[370099454,1751879454396,-151.0,0.00025197,7]
[370099455,1751879454405,-151.0,0.00025197,7]
[370099456,1751879454414,-261.495596,0.00025197,7]
[370099457,1751879454423,-643.327839,0.00025197,7]
[370099458,1751879454433,-643.327839,0.00025197,7]
[370099459,1751879454444,-643.327839,0.00025197,7]
[370099460,1751879454453,-643.327839,0.00025197,7]
[370099461,1751879454462,-643.327839,0.00025197,7]
[370099462,1751879454472,-643.327839,0.00025197,7]
[370099463,1751879454482,-643.327839,0.00025197,7]
[370099464,1751879454496,-172.806965,0.00025197,7]
[370099465,1751879454506,-172.806965,0.00025197,7]
[370099466,1751879454517,-172.806965,0.00025197,7]
[370099467,1751879454526,-172.806965,0.00025197,7]
[370099468,1751879454536,-172.806965,0.00025197,7]
[370099469,1751879454547,-172.806965,0.00025197,7]
[370099470,1751879454558,-172.806965,0.00025197,7]
[370099471,1751879454568,-172.806965,0.00025197,7]
[370099472,1751879454579,-172.806965,0.00025197,7]
[370099473,1751879454589,-172.806965,0.00025197,7]
[370099474,1751879454598,-151.0,0.00025197,7]
[370099475,1751879454608,-172.806965,0.00025197,7]
[370099476,1751879454618,-172.806965,0.00025197,7]
[370099477,1751879454628,-151.0,0.00025197,7]
[370099478,1751879454637,-151.0,0.00025197,7]
[370099479,1751879454647,-151.0,0.00025197,7]
[370099480,1751879454656,-151.0,0.00025197,7]
[370099481,1751879454666,-172.806965,0.00025197,7]
[370099482,1751879454676,-151.0,0.00025197,7]
[370099483,1751879454686,-172.806965,0.00025197,7]
[370099484,1751879454695,-151.0,0.00025197,7]
[370099485,1751879454705,-151.0,0.00025197,7]
[370099486,1751879454715,-151.0,0.00025197,7]
[370099487,1751879454724,-151.0,0.00025197,7]
[370099488,1751879454734,-205.397778,0.00025197,7]
[370099489,1751879454743,-151.0,0.00025197,7]
[370099490,1751879454753,-151.0,0.00025197,7]
[370099491,1751879454762,-252.266514,0.00025197,7]
[370099492,1751879454772,-84161.10174635,0.00025197,20]
[370099493,1751879455544,-499.98,0.00016583,2]
[370099494,1751879455554,-519.27,0.00016583,2]
[370099495,1751879455564,-208.96118172,0.00016584,2]
[370099496,1751879455574,-460.0,0.00016585,2]
[370099497,1751879455583,-499.98,0.00016857,2]
[370099498,1751879455594,-460.0,0.00016859,2]
[370099499,1751879455604,-151.0,0.00017932,2]
[370099500,1751879455613,-2454.51413014,0.00022886,2]
[370099501,1751879455622,-429.128,0.00023703,2]
[370099502,1751879455632,-24817.16668814,0.00025197,20]
[370099503,1751879455815,-460.0,0.00016583,2]
[370099504,1751879455825,-460.0,0.00016583,2]
[370099505,1751879455834,-460.0,0.00016583,2]
[370099506,1751879455844,-460.0,0.00016585,2]
[370099507,1751879455853,-460.0,0.00016857,2]
[370099508,1751879455862,-499.98,0.00017131,2]
[370099509,1751879455871,-460.0,0.00017131,2]
[370099510,1751879455881,-499.98,0.00017405,2]
[370099511,1751879455890,-499.98,0.00017679,2]
[370099512,1751879455899,-499.98,0.00017953,2]
[370099513,1751879455908,-499.98,0.00018227,2]
[370099514,1751879455918,-499.98,0.00018501,2]
[370099515,1751879455928,-499.98,0.00018775,2]
[370099516,1751879455937,-242.65676809,0.00019049,2]
[370099517,1751879455949,-257.32323191,0.00019049,2]
[370099518,1751879455959,-136.23159737,0.00019323,2]
[370099519,1751879455970,-363.74840263,0.00019323,2]
[370099520,1751879455979,-11.73359537,0.00019597,2]
[370099521,1751879455990,-488.24640463,0.00019597,2]
[370099522,1751879456000,-151.51293059,0.00020176,2]
[370099523,1751879456009,-857.1242403,0.00024685,2]
[370099524,1751879456018,-8051.21465605,0.00025197,20]
[370099525,1751879456030,-1425.700614,0.00025197,20]
[370099526,1751879456046,-460.0,0.00017405,2]
[370099527,1751879456055,-1197.09659948,0.00025197,20]
[370099528,1751879456066,-3600.2142615,0.00025197,20]
[370099529,1751879456077,-2432.69984497,0.00025197,20]
[370099530,1751879456089,-687.63105915,0.00025197,20]
[370099531,1751879456101,-9434.35863073,0.00025197,20]
[370099532,1751879456314,1950.21436641,0.000165,2]
[370099533,1751879456337,3049.78563359,0.000165,2]
[370099534,1751879456442,-379.95638388,0.00016584,2]
[370099535,1751879490725,-326.6364031,0.00016582,2]
[370099536,1751879494252,-53.31998078,0.00016582,2]
[370099537,1751879494276,-228.46939699,0.00016583,2]
[370099538,1751879496608,-218.21062223,0.00016583,2]
[370099539,1751879523301,-284.96181085,0.00016582,2]
[370099540,1751879548187,-210.49964705,0.00016582,2]
[370099541,1751879577359,-4.5385421,0.00016582,2]
[370099542,1751879577382,-205.96110495,0.00016582,2]
[370099543,1751879597771,151.51293059,0.00016485,2]
[370099544,1751879696873,3340.0,0.000165,2]
[370099545,1751879748258,151.51293059,0.00016483,2]
[370099546,1751879869506,5002.87,0.00027397,120]
[370099549,1751879883631,151.51293059,0.00016483,2]
[370099551,1751879954969,165.456041,0.00013699,2]
[370099552,1751879962641,5000.0,0.000165,2]
[370099553,1751879979689,5000.0,0.000165,2]
[370099554,1751879995206,2990.21953364,0.000165,2]
[370099555,1751879995228,2009.78046636,0.000165,2]
[370099556,1751880009331,151.51293059,0.00016482,2]
[370099557,1751880013971,5000.0,0.000165,2]
[370099558,1751880149732,200.1085226,0.00027397,120]
[370099559,1751880193744,-278.70042543,0.00016573,3]
[370099560,1751880211685,273.8534001,0.000176,6]
[370099561,1751880349140,-329.84957457,0.00016573,3]
[370099562,1751880349161,-153.39,0.00016573,3]
[370099563,1751880349183,-290.77,0.00016575,3]
[370099564,1751880349204,-463.97209216,0.00016575,3]
[370099565,1751880395094,-153.36599766,0.00016575,3]
[370099566,1751880447617,-255.00191018,0.00016575,3]
[370099567,1751880447639,-390.23922035,0.00016579,2]
[370099568,1751880447660,-129.29178578,0.00016579,2]
[370099569,1751880465202,207.2385977,0.0001648,2]
[370099570,1751880496905,414.00578081,0.00010618,2]
[370099571,1751880498978,11351.65242822,0.000125,2]
[370099582,1751880510708,277.08263106,0.00014114,2]
[370099583,1751880512804,281.91846028,0.0001,2]
[370099584,1751880515987,306.80870498,0.00016209,2]
[370099585,1751880516010,20000.0,0.00016209,2]
[370099586,1751880516033,20000.0,0.00016209,2]
[370099587,1751880516055,20000.0,0.00016209,2]
[370099588,1751880516077,17894.01896024,0.00016209,2]
[370099595,1751880568399,2105.98103976,0.000165,2]
[370099596,1751880568421,2894.01896024,0.000165,2]
[370099598,1751880584867,5000.0,0.000165,2]
[370099599,1751880590522,207.23859769,0.0001648,2]
[370099600,1751880602568,5000.0,0.000165,2]
[370099601,1751880618778,361.01508616,0.0001655,2]
[370099602,1751880620868,6898.74244207,0.00015581,2]
[370099603,1751880620892,3101.25755793,0.00015581,2]
[370099604,1751880622055,-206.75113126,0.0001655,2]
[370099605,1751880626755,-482.04517871,0.0001655,2]
[370099632,1751880638395,-3950.18860387,0.0001655,2]
[370099633,1751880638405,-322.71,0.00016572,3]
[370099634,1751880638415,-161.36,0.00016572,3]
[370099635,1751880638424,-484.1,0.00016572,3]
[370099636,1751880638433,-150.0,0.00016572,2]
[370099637,1751880638442,-314.84126134,0.00016579,2]
[370099638,1751880638453,-232.39269366,0.00016579,2]
[370099639,1751880638462,-400.6108883,0.00016579,2]
[370099640,1751880638475,-59.3891117,0.00016579,2]
[370099641,1751880638485,-460.0,0.00016579,2]
[370099642,1751880638495,-460.0,0.00016579,2]
[370099643,1751880638504,-460.0,0.00016579,2]
[370099644,1751880638514,-460.0,0.00016579,2]
[370099645,1751880638523,-460.0,0.00016579,2]
[370099646,1751880638537,-460.0,0.00016579,2]
[370099647,1751880638546,-460.0,0.00016579,2]
[370099648,1751880638556,-460.0,0.00016579,2]
[370099649,1751880638566,-460.0,0.00016579,2]
[370099650,1751880638579,-460.0,0.00016579,2]
[370099651,1751880638589,-460.0,0.00016579,2]
[370099652,1751880638600,-460.0,0.00016579,2]
[370099653,1751880638610,-460.0,0.00016579,2]
[370099654,1751880638619,-581.95796661,0.00016579,2]
[370099655,1751880638630,-186.67486364,0.00016579,2]
[370099656,1751880638640,-2839.92,0.00016579,2]
[370099657,1751880638650,-460.0,0.00016579,2]
[370099658,1751880638659,-460.0,0.00016579,2]
[370099659,1751880638669,-460.0,0.00016579,2]
[370099660,1751880638678,-460.0,0.0001658,2]
[370099661,1751880638688,-460.0,0.0001658,2]
[370099662,1751880638698,-460.0,0.0001658,2]
[370099663,1751880638707,-569.65,0.0001658,2]
[370099664,1751880638717,-460.0,0.0001658,2]
[370099665,1751880638726,-469.28,0.0001658,2]
[370099666,1751880638736,-460.0,0.0001658,2]
[370099667,1751880638746,-460.0,0.0001658,2]
[370099668,1751880638757,-460.0,0.0001658,2]
[370099669,1751880638767,-460.0,0.0001658,2]
[370099670,1751880638776,-460.0,0.0001658,2]
[370099671,1751880638786,-460.0,0.0001658,2]
[370099672,1751880638796,-460.0,0.0001658,2]
[370099673,1751880638805,-460.0,0.0001658,2]
[370099674,1751880638815,-537.25,0.0001658,2]
[370099675,1751880638825,-460.0,0.0001658,2]
[370099676,1751880638834,-4065.54099164,0.0001658,2]
[370099677,1751880638851,-45934.45900836,0.0001658,2]
[370099678,1751880638860,-460.0,0.0001658,2]
[370099679,1751880638870,-460.0,0.0001658,2]
[370099680,1751880638881,-460.0,0.0001658,2]
[370099681,1751880638891,-460.0,0.0001658,2]
[370099682,1751880638901,-460.0,0.0001658,2]
[370099683,1751880638911,-460.0,0.0001658,2]
[370099684,1751880638921,-460.0,0.0001658,2]
[370099685,1751880638930,-460.0,0.0001658,2]
[370099686,1751880638940,-460.0,0.0001658,2]
[370099687,1751880638950,-460.0,0.0001658,2]
[370099688,1751880638959,-460.0,0.0001658,2]
[370099689,1751880638968,-460.0,0.0001658,2]
[370099690,1751880638978,-523.67,0.0001658,2]
[370099691,1751880638988,-460.0,0.0001658,2]
[370099692,1751880638998,-460.0,0.0001658,2]
[370099693,1751880639007,-460.0,0.0001658,2]
[370099694,1751880639016,-460.0,0.0001658,2]
[370099695,1751880639026,-460.0,0.0001658,2]
[370099696,1751880639036,-460.0,0.0001658,2]
[370099697,1751880639046,-460.0,0.0001658,2]
[370099698,1751880639055,-274.24,0.0001658,2]
[370099699,1751880639065,-460.0,0.0001658,2]
[370099700,1751880639075,-571.05,0.0001658,2]
[370099701,1751880639084,-460.0,0.00016581,2]
[370099702,1751880639094,-460.0,0.00016581,2]
[370099703,1751880639103,-460.0,0.00016581,2]
[370099704,1751880639113,-460.0,0.00016581,2]
[370099705,1751880639123,-460.0,0.00016581,2]
[370099706,1751880639134,-460.0,0.00016581,2]
[370099707,1751880639144,-460.0,0.00016581,2]
[370099708,1751880639153,-460.0,0.00016581,2]
[370099709,1751880639164,-460.0,0.00016581,2]
[370099710,1751880639176,-460.0,0.00016581,2]
[370099711,1751880639186,-460.0,0.00016581,2]
[370099712,1751880639196,-460.0,0.00016581,2]
[370099713,1751880639206,-460.0,0.00016581,2]
[370099714,1751880639215,-460.0,0.00016581,2]
[370099715,1751880639226,-460.0,0.00016581,2]
[370099716,1751880639237,-460.0,0.00016581,2]
[370099717,1751880639246,-460.0,0.00016581,2]
[370099718,1751880639256,-460.0,0.00016581,2]
[370099719,1751880639266,-460.0,0.00016581,2]
[370099720,1751880639277,-460.0,0.00016581,2]
[370099721,1751880639286,-460.0,0.00016581,2]
[370099722,1751880639295,-460.0,0.00016581,2]
[370099723,1751880639305,-460.0,0.00016581,2]
[370099724,1751880639314,-460.0,0.00016581,2]
[370099725,1751880639324,-460.0,0.00016581,2]
[370099726,1751880639333,-460.0,0.00016581,2]
[370099727,1751880639343,-460.0,0.00016581,2]
[370099728,1751880639354,-460.0,0.00016581,2]
[370099729,1751880639364,-460.0,0.00016581,2]
[370099730,1751880639375,-397.92,0.00016581,2]
[370099731,1751880639385,-460.0,0.00016581,2]
[370099732,1751880639395,-460.0,0.00016581,2]
[370099733,1751880639404,-460.0,0.00016581,2]
[370099734,1751880639414,-460.0,0.00016581,2]
[370099735,1751880639423,-460.0,0.00016581,2]
[370099736,1751880639434,-500.0,0.00016581,2]
[370099737,1751880639445,-460.0,0.00016581,2]
[370099738,1751880639455,-460.0,0.00016581,2]
[370099739,1751880639465,-460.0,0.00016581,2]
[370099740,1751880639475,-460.0,0.00016581,2]
[370099741,1751880639485,-460.0,0.00016581,2]
[370099742,1751880639495,-460.0,0.00016581,2]
[370099743,1751880639504,-460.0,0.00016581,2]
[370099744,1751880639514,-460.0,0.00016581,2]
[370099745,1751880639523,-460.0,0.00016581,2]
[370099746,1751880639533,-460.0,0.00016581,2]
[370099747,1751880639542,-460.0,0.00016581,2]
[370099748,1751880639552,-507.16,0.00016581,2]
[370099749,1751880639562,-460.0,0.00016581,2]
[370099750,1751880639574,-460.0,0.00016581,2]
[370099751,1751880639584,-460.0,0.00016581,2]
[370099752,1751880639593,-460.0,0.00016581,2]
[370099753,1751880639603,-460.0,0.00016581,2]
[370099754,1751880639612,-460.0,0.00016581,2]
[370099755,1751880639622,-460.0,0.00016581,2]
[370099756,1751880639632,-460.0,0.00016581,2]
[370099757,1751880639641,-460.0,0.00016581,2]
[370099758,1751880639651,-460.0,0.00016581,2]
[370099759,1751880639660,-563.01,0.00016581,2]
[370099760,1751880639670,-412.23764756,0.00016581,2]
[370099761,1751880639679,-460.0,0.00016581,2]
[370099762,1751880639688,-460.0,0.00016581,2]
[370099763,1751880639698,-460.0,0.00016581,2]
[370099764,1751880639708,-472.43075213,0.00016581,2]
[370099765,1751880639718,-460.0,0.00016581,2]
[370099766,1751880639728,-460.0,0.00016581,2]
[370099767,1751880639738,-460.0,0.00016581,2]
[370099768,1751880639748,-460.0,0.00016581,2]
[370099769,1751880639758,-460.0,0.00016581,2]
[370099771,1751880639768,-460.0,0.00016581,2]
[370099773,1751880639777,-460.0,0.00016581,2]
[370099775,1751880639786,-460.0,0.00016581,2]
[370099777,1751880639795,-460.0,0.00016581,2]
[370099778,1751880639805,-533.16,0.00016581,2]
[370099779,1751880639815,-460.0,0.00016581,2]
[370099781,1751880639825,-460.0,0.00016581,2]
[370099783,1751880639834,-460.0,0.00016581,2]
[370099784,1751880639844,-460.0,0.00016581,2]
[370099785,1751880639853,-460.0,0.00016581,2]
[370099786,1751880639863,-485.46,0.00016581,2]
[370099787,1751880639873,-460.0,0.00016581,2]
[370099788,1751880639883,-460.0,0.00016581,2]
[370099789,1751880639892,-460.0,0.00016581,2]
[370099790,1751880639902,-460.0,0.00016581,2]
[370099791,1751880639912,-460.0,0.00016581,2]